fUSD/lending_fUSD_20240419
["ID","MTS","AMOUNT","RATE_DAILY","PERIOD"]
[322903594,1713490259601,-524.23,0.00016438,2]
[322903595,1713490259611,-4807.92997899,0.00016438,2]
[322903596,1713490260658,-377.76109679,0.00016435,2]
[322903597,1713490260667,-155.00341152,0.00016436,2]
[322903598,1713490260676,-99.48836784,0.00016436,2]
[322903599,1713490260695,-55.51163216,0.00016436,2]
[322903600,1713490260704,-776.57817259,0.00016437,2]
[322903601,1713490260715,-1239.56869533,0.00016437,2]
[322903602,1713490260725,-318.48130467,0.00016438,2]
[322903603,1713490260735,-278.41697338,0.00016438,2]
[322903604,1713490260747,-335.30570427,0.00016438,2]
[322903605,1713490260758,-4072.64603869,0.00016438,2]
[322903606,1713490260768,-6467.82,0.00016438,2]
[322903607,1713490260776,-500.0,0.00016438,2]
[322903608,1713490260785,-737.31,0.00016438,2]
[322903609,1713490260795,-500.0,0.00016438,2]
[322903610,1713490260804,-1177.75,0.00016438,2]
[322903611,1713490260813,-4444.47396131,0.00016438,2]
[322903612,1713490260825,-2172.5,0.00016438,2]
[322903613,1713490260842,-401.28603869,0.00016438,2]
[322903614,1713490260851,-1181.95,0.00016438,2]
[322903615,1713490260860,-500.0,0.00016438,2]
[322903616,1713490260869,-587.46,0.00016438,2]
[322903617,1713490260878,-719.13396131,0.00016438,2]
[322903618,1713490260897,-30.81603869,0.00016438,2]
[322903619,1713490260906,-460.11946646,0.00016438,2]
[322903620,1713490260923,-39.88053354,0.00016438,2]
[322903621,1713490260932,-1205.53946646,0.00016438,2]
[322903622,1713490261073,-273.31193874,0.00016438,2]
[322903623,1713490406773,1200.0,0.00024,30]
[322903624,1713490433103,1000.0,0.00015436,2]
[322903625,1713490448066,666.85,0.0001531,2]
[322903626,1713490470944,465.66,0.00013541,2]
[322903627,1713490480025,257.99983169,0.0001531,2]
[322903628,1713490492905,205.73,0.00015436,2]
[322903629,1713490502017,257.99983169,0.0001531,2]
[322903630,1713490519150,412.95085156,0.0001531,2]
[322903631,1713490760722,1107.98,0.000155,2]
[322903632,1713490776178,5350.0,0.00024,30]
[322903633,1713490785535,5350.0,0.00024,31]
[322903634,1713490822397,5350.0,0.00022,28]
[322903635,1713490828145,5350.0,0.00022,29]
[322903636,1713490859539,500.0,0.0001531,2]
[322903637,1713490859692,500.0,0.0001531,2]
[322903638,1713490860018,500.0,0.0001531,2]
[322903639,1713490860147,500.0,0.0001531,2]
[322903640,1713490860957,747.0,0.0001531,2]
[322903641,1713490945191,200.0,0.00015381,2]
[322903642,1713490979486,469.76,0.00013464,2]
[322903643,1713491076197,5350.0,0.00018,27]
[322903644,1713491082018,2350.0,0.00018,25]
[322903645,1713491103402,1384.56,0.00015372,2]
[322903646,1713491150234,20506.67568581,0.00015502,2]
[322903647,1713491151764,200.0,0.00015361,2]
[322903648,1713491162680,170.93,0.00015357,2]
[322903649,1713491248087,4027.8914,0.00015499,2]
[322903650,1713491286518,257.90267131,0.00015357,2]
[322903651,1713491304121,203.9,0.00015299,2]
[322903652,1713491329821,150.37,0.00015292,2]
[322903653,1713491330157,150.37,0.00015297,2]
[322903654,1713491330358,150.37,0.00015303,2]
[322903655,1713491330567,150.37,0.00015308,2]
[322903656,1713491331383,150.37,0.00015314,2]
[322903657,1713491331486,150.37,0.00015319,2]
[322903658,1713491331734,150.37,0.00015325,2]
[322903659,1713491331826,150.37,0.0001533,2]
[322903660,1713491332034,150.37,0.00015336,2]
[322903661,1713491332160,150.37,0.00015341,2]
[322903662,1713491332253,150.37,0.00015346,2]
[322903663,1713491332408,150.37,0.00015352,2]
[322903664,1713491332619,150.37,0.00015357,2]
[322903665,1713491332824,150.37,0.00015363,2]
[322903666,1713491333043,150.37,0.00015368,2]
[322903667,1713491347727,161.89,0.00015409,2]
[322903668,1713491414261,840.0,0.00015255,2]
[322903685,1713491432290,-200.2042692,0.00015585,2]
[322903686,1713491432300,-18269.10939486,0.00015586,2]
[322903687,1713491432311,-1161.98410538,0.00015586,2]
[322903688,1713491432320,-643.44065759,0.00015587,2]
[322903689,1713491432329,-643.44065759,0.00015587,2]
[322903690,1713491432338,-643.44065759,0.00015587,2]
[322903691,1713491432346,-693.42,0.00015588,3]
[322903692,1713491432356,-57334.77165239,0.00015596,2]
[322903693,1713491432417,-2329.73949794,0.00015596,2]
[322903694,1713491432428,-1531.46833,0.00015596,2]
[322903695,1713491432490,-1109.80142368,0.00015596,2]
[322903696,1713491432502,-1718.48220126,0.00015596,2]
[322903697,1713491432567,-28320.80531143,0.00015596,2]
[322903738,1713491438331,-45760.66265993,0.00015596,2]
[322903739,1713491438341,-150.0,0.00015597,2]
[322903740,1713491438352,-300.0,0.00015597,2]
[322903741,1713491438362,-42608.50413454,0.00015598,2]
[322903742,1713491438372,-16086.5787667,0.00015601,2]
[322903743,1713491438382,-696.83997587,0.00015614,2]
[322903744,1713491438392,-161.89,0.00015677,2]
[322903745,1713491438401,-469.76,0.00015727,2]
[322903746,1713491438410,-656.0,0.000158,2]
[322903747,1713491438420,-3145.02,0.000158,2]
[322903748,1713491438429,-161.89,0.00015945,2]
[322903749,1713491438438,-150.0,0.00015973,2]
[322903750,1713491438448,-1250.0,0.00016,2]
[322903751,1713491438457,-155.0,0.00016,2]
[322903752,1713491438468,-12602.86369972,0.0001612,2]
[322903753,1713491438477,-2227.92638168,0.00016121,2]
[322903754,1713491438486,-150.0,0.00016197,2]
[322903755,1713491438497,-8000.0,0.000162,2]
[322903756,1713491438506,-8000.0,0.0001621,2]
[322903757,1713491438515,-161.89,0.00016212,2]
[322903758,1713491438525,-8000.0,0.0001622,2]
[322903759,1713491438534,-8000.0,0.0001623,2]
[322903760,1713491438543,-8000.0,0.0001624,2]
[322903761,1713491438553,-8000.0,0.0001625,2]
[322903762,1713491438562,-8000.0,0.0001626,2]
[322903763,1713491438572,-8000.0,0.0001627,2]
[322903764,1713491438581,-8000.0,0.0001628,2]
[322903765,1713491438590,-8000.0,0.0001629,2]
[322903766,1713491438599,-150.0,0.000163,2]
[322903767,1713491438610,-8000.0,0.000163,2]
[322903768,1713491438620,-200.0,0.00016306,2]
[322903769,1713491438630,-1000.0,0.00016306,2]
[322903770,1713491438640,-200.0,0.00016306,2]
[322903771,1713491438650,-500.0,0.00016306,2]
[322903772,1713491438659,-200.0,0.00016306,2]
[322903773,1713491438669,-1000.0,0.00016306,2]
[322903774,1713491438679,-200.0,0.00016307,2]
[322903775,1713491438689,-1000.0,0.00016307,2]
[322903776,1713491438699,-1000.0,0.00016307,2]
[322903777,1713491438711,-200.0,0.00016307,2]
[322903778,1713491438723,-500.0,0.00016307,2]
[322903780,1713491438733,-500.0,0.00016307,2]
[322903782,1713491438743,-200.0,0.00016307,2]
[322903784,1713491438753,-8000.0,0.0001631,2]
[322903786,1713491438763,-150.0,0.00016318,2]
[322903788,1713491438773,-8000.0,0.0001632,2]
[322903790,1713491438782,-4500.19,0.0001633,2]
[322903792,1713491438792,-343.0274,0.0001633,2]
[322903793,1713491438801,-445.5275,0.00016334,2]
[322903795,1713491438811,-1193.8237,0.00016337,2]
[322903798,1713491438821,-150.21929377,0.00016338,2]
[322903799,1713491438832,-287.20458748,0.00016338,2]
[322903800,1713491438841,-894.54005981,0.00016338,2]
[322903801,1713491438851,-648.78213721,0.00016338,2]
[322903802,1713491438861,-153.40403163,0.00016338,2]
[322903803,1713491438874,-239.95800629,0.00016338,2]
[322903804,1713491438884,-194.59603064,0.00016338,2]
[322903805,1713491438893,-4097.87178879,0.00016338,2]
[322903806,1713491438903,-168.7819,0.00016338,2]
[322903807,1713491438913,-927.51954,0.0001634,2]
[322903808,1713491438923,-217.55777064,0.00016367,2]
[322903809,1713491438933,-10000.0,0.00016368,2]
[322903810,1713491438942,-5000.0,0.000164,2]
[322903811,1713491438952,-287.20458748,0.00016407,2]
[322903812,1713491438966,-5000.0,0.0001641,2]
[322903813,1713491438976,-242.04191,0.00016418,2]
[322903814,1713491438985,-201.6488,0.0001642,2]
[322903815,1713491438995,-5000.0,0.0001642,2]
[322903816,1713491439005,-927.51955,0.0001642,2]
[322903817,1713491439015,-151.56515684,0.00016428,2]
[322903818,1713491439024,-151.56515684,0.00016428,2]
[322903819,1713491439034,-151.56515684,0.00016428,2]
[322903820,1713491439043,-164.55,0.00016428,2]
[322903821,1713491439053,-932.4833715,0.00016429,2]
[322903822,1713491439063,-3501.6610744,0.00016429,2]
[322903823,1713491439072,-15394.4155487,0.00016429,2]
[322903824,1713491439083,-785.85853829,0.00016429,2]
[322903825,1713491439092,-8643.060824,0.00016429,2]
[322903826,1713491439102,-5000.0,0.0001643,2]
[322903827,1713491439111,-3112.35751573,0.00016436,2]
[322903828,1713491439120,-1302.07511691,0.00016436,2]
[322903829,1713491439130,-2892.02850822,0.00016436,2]
[322903830,1713491439140,-262.75491139,0.00016436,2]
[322903831,1713491439149,-155.63247054,0.00016436,2]
[322903832,1713491439160,-1131.03576158,0.00016436,2]
[322903833,1713491439169,-4332.82844793,0.00016436,2]
[322903834,1713491439179,-534.33598832,0.00016436,2]
[322903835,1713491439188,-540.62931802,0.00016436,2]
[322903836,1713491439197,-179.11735708,0.00016436,2]
[322903837,1713491439207,-3573.43695856,0.00016437,2]
[322903838,1713491439218,-155.28981591,0.00016437,2]
[322903839,1713491439227,-155.38695018,0.00016437,2]
[322903840,1713491439236,-378.94968735,0.00016437,2]
[322903841,1713491439245,-525.02271148,0.00016437,2]
[322903842,1713491439254,-7228.71600604,0.00016438,2]
[322903843,1713491439263,-1293.0,0.00016438,2]
[322903844,1713491439272,-500.0,0.00016438,2]
[322903845,1713491439282,-500.37635961,0.00016438,2]
[322903846,1713491439291,-500.0,0.00016438,2]
[322903847,1713491439301,-500.0,0.00016438,2]
[322903848,1713491439310,-500.0,0.00016438,2]
[322903849,1713491439319,-500.0,0.00016438,2]
[322903850,1713491439328,-500.0,0.00016438,2]
[322903851,1713491439337,-500.0,0.00016438,2]
[322903852,1713491439346,-229.79107024,0.00016438,2]
[322903853,1713491439355,-298.88917645,0.00016438,2]
[322903854,1713491439365,-500.0,0.00016438,2]
[322903855,1713491439374,-500.0,0.00016438,2]
[322903856,1713491439385,-500.0,0.00016438,2]
[322903857,1713491439395,-500.0,0.00016438,2]
[322903858,1713491439405,-1702.71,0.00016438,2]
[322903859,1713491439416,-500.89774376,0.00016438,2]
[322903860,1713491439426,-500.10973867,0.00016438,2]
[322903861,1713491439436,-500.0,0.00016438,2]
[322903862,1713491439446,-236.69352119,0.00016438,2]
[322903863,1713491439455,-500.0,0.00016438,2]
[322903864,1713491439467,-500.0,0.00016438,2]
[322903865,1713491439476,-881.68,0.00016438,2]
[322903866,1713491439486,-500.0,0.00016438,2]
[322903867,1713491439494,-500.0,0.00016438,2]
[322903868,1713491439503,-500.0,0.00016438,2]
[322903869,1713491439512,-500.0,0.00016438,2]
[322903870,1713491439521,-1239.5,0.00016438,2]
[322903871,1713491439530,-500.0,0.00016438,2]
[322903872,1713491439540,-2000.0,0.00016438,2]
[322903873,1713491439549,-500.0,0.00016438,2]
[322903874,1713491439559,-500.0,0.00016438,2]
[322903875,1713491439569,-500.0,0.00016438,2]
[322903876,1713491439578,-500.0,0.00016438,2]
[322903877,1713491439587,-500.0,0.00016438,2]
[322903878,1713491439596,-500.0,0.00016438,2]
[322903879,1713491439605,-500.0,0.00016438,2]
[322903880,1713491439615,-500.0,0.00016438,2]
[322903881,1713491439624,-500.0,0.00016438,2]
[322903882,1713491439633,-500.0,0.00016438,2]
[322903883,1713491439643,-415.83437535,0.00016438,2]
[322903884,1713491439652,-500.0,0.00016438,2]
[322903885,1713491439662,-500.0,0.00016438,2]
[322903886,1713491439671,-500.0,0.00016438,2]
[322903887,1713491439680,-500.69912431,0.00016438,2]
[322903888,1713491439689,-502.73383317,0.00016438,2]
[322903889,1713491439698,-500.0,0.00016438,2]
[322903890,1713491439707,-500.0,0.00016438,2]
[322903891,1713491439721,-500.0,0.00016438,2]
[322903892,1713491439731,-500.0,0.00016438,2]
[322903893,1713491439741,-500.0,0.00016438,2]
[322903894,1713491439751,-500.0,0.00016438,2]
[322903895,1713491439761,-500.0,0.00016438,2]
[322903896,1713491439770,-156.4322347,0.00016438,2]
[322903897,1713491439779,-872.47,0.00016438,2]
[322903898,1713491439790,-276.87156345,0.00016438,2]
[322903899,1713491439802,-500.0,0.00016438,2]
[322903900,1713491439811,-500.0,0.00016438,2]
[322903901,1713491439821,-500.0,0.00016438,2]
[322903902,1713491439830,-500.0,0.00016438,2]
[322903903,1713491439840,-500.0,0.00016438,2]
[322903904,1713491439850,-500.12148276,0.00016438,2]
[322903905,1713491439859,-500.0,0.00016438,2]
[322903906,1713491439869,-387.91155433,0.00016438,2]
[322903907,1713491439882,-500.0,0.00016438,2]
[322903908,1713491439891,-500.0,0.00016438,2]
[322903909,1713491439901,-500.0,0.00016438,2]
[322903910,1713491439914,-754.04,0.00016438,2]
[322903911,1713491439923,-501.22064763,0.00016438,2]
[322903912,1713491439932,-500.0,0.00016438,2]
[322903913,1713491439941,-1020.58,0.00016438,2]
[322903914,1713491439952,-914.23,0.00016438,2]
[322903915,1713491439962,-798.54,0.00016438,2]
[322903917,1713491439971,-500.0,0.00016438,2]
[322903918,1713491439981,-500.0,0.00016438,2]
[322903919,1713491439990,-500.0,0.00016438,2]
[322903920,1713491439999,-500.0,0.00016438,2]
[322903921,1713491440009,-500.0,0.00016438,2]
[322903922,1713491440018,-500.0,0.00016438,2]
[322903923,1713491440027,-1066.07,0.00016438,2]
[322903925,1713491440037,-500.0,0.00016438,2]
[322903927,1713491440046,-1139.74,0.00016438,2]
[322903928,1713491440055,-500.0,0.00016438,2]
[322903929,1713491440065,-500.0,0.00016438,2]
[322903930,1713491440074,-500.0,0.00016438,2]
[322903931,1713491440084,-500.0,0.00016438,2]
[322903932,1713491440100,-884.66,0.00016438,2]
[322903933,1713491440110,-500.0,0.00016438,2]
[322903934,1713491440119,-500.0,0.00016438,2]
[322903935,1713491440128,-500.0,0.00016438,2]
[322903936,1713491440137,-500.0,0.00016438,2]
[322903937,1713491440146,-500.0,0.00016438,2]
[322903938,1713491440155,-732.07,0.00016438,2]
[322903939,1713491440164,-668.7,0.00016438,2]
[322903940,1713491440173,-500.0,0.00016438,2]
[322903941,1713491440183,-500.0,0.00016438,2]
[322903942,1713491440192,-500.0,0.00016438,2]
[322903943,1713491440202,-500.0,0.00016438,2]
[322903944,1713491440221,-500.0,0.00016438,2]
[322903945,1713491440230,-1179.82,0.00016438,2]
[322903946,1713491440240,-500.0,0.00016438,2]
[322903947,1713491440250,-964.12,0.00016438,2]
[322903948,1713491440259,-1760.71,0.00016438,2]
[322903949,1713491440268,-500.0,0.00016438,2]
[322903950,1713491440277,-500.0,0.00016438,2]
[322903951,1713491440286,-1262.78,0.00016438,2]
[322903952,1713491440295,-500.0,0.00016438,2]
[322903953,1713491440305,-500.0,0.00016438,2]
[322903954,1713491440314,-619.07,0.00016438,2]
[322903955,1713491440323,-559.91464616,0.00016438,2]
[322903956,1713491440332,-500.16415494,0.00016438,2]
[322903957,1713491440342,-956.87,0.00016438,2]
[322903958,1713491440353,-500.0,0.00016438,2]
[322903959,1713491440368,-500.0,0.00016438,2]
[322903960,1713491440378,-500.0,0.00016438,2]
[322903961,1713491440387,-603.64,0.00016438,2]
[322903962,1713491440396,-544.53978621,0.00016438,2]
[322903963,1713491440405,-917.07,0.00016438,2]
[322903964,1713491440415,-764.95,0.00016438,2]
[322903965,1713491440425,-698.12,0.00016438,2]
[322903966,1713491440434,-1026.99,0.00016438,2]
[322903967,1713491440443,-547.45,0.00016438,2]
[322903968,1713491440453,-1479.87,0.00016438,2]
[322903969,1713491440465,-500.0,0.00016438,2]
[322903970,1713491440474,-564.06,0.00016438,2]
[322903971,1713491440484,-2379.51,0.00016438,2]
[322903972,1713491440493,-500.0,0.00016438,2]
[322903973,1713491440503,-1242.66,0.00016438,2]
[322903974,1713491440512,-974.79,0.00016438,2]
[322903975,1713491440521,-1554.6,0.00016438,2]
[322903976,1713491440530,-500.0,0.00016438,2]
[322903977,1713491440540,-500.0,0.00016438,2]
[322903978,1713491440549,-500.0,0.00016438,2]
[322903979,1713491440557,-500.0,0.00016438,2]
[322903980,1713491440567,-500.0,0.00016438,2]
[322903981,1713491440577,-500.0,0.00016438,2]
[322903982,1713491440586,-500.0,0.00016438,2]
[322903983,1713491440836,-500.0,0.00016438,2]
[322903984,1713491440907,-500.0,0.00016438,2]
[322903985,1713491440916,-500.0,0.00016438,2]
[322903986,1713491440927,-500.0,0.00016438,2]
[322903987,1713491440936,-2220.94,0.00016438,2]
[322903988,1713491440946,-1166.34,0.00016438,2]
[322903989,1713491440957,-500.0,0.00016438,2]
[322903990,1713491440975,-500.0,0.00016438,2]
[322903991,1713491440985,-500.0,0.00016438,2]
[322903992,1713491440996,-150.0,0.00016438,2]
[322903993,1713491441006,-500.0,0.00016438,2]
[322903994,1713491441018,-507.69370441,0.00016438,2]
[322903995,1713491441028,-1391.98,0.00016438,2]
[322903996,1713491441039,-818.54,0.00016438,2]
[322903997,1713491441049,-510.44,0.00016438,2]
[322903998,1713491441059,-500.0,0.00016438,2]
[322903999,1713491441069,-963.0,0.00016438,2]
[322904000,1713491441079,-2080.08,0.00016438,2]
[322904001,1713491441089,-1949.42,0.00016438,2]
[322904002,1713491441098,-500.0,0.00016438,2]
[322904003,1713491441108,-500.0,0.00016438,2]
[322904004,1713491441117,-500.0,0.00016438,2]
[322904005,1713491441127,-554.47,0.00016438,2]
[322904006,1713491441135,-1428.21,0.00016438,2]
[322904007,1713491441144,-500.0,0.00016438,2]
[322904008,1713491441154,-1417.05,0.00016438,2]
[322904009,1713491441163,-808.61,0.00016438,2]
[322904010,1713491441172,-1134.99,0.00016438,2]
[322904011,1713491441182,-500.0,0.00016438,2]
[322904012,1713491441191,-2291.63,0.00016438,2]
[322904013,1713491441200,-502.34,0.00016438,2]
[322904014,1713491441209,-538.69436313,0.00016438,2]
[322904015,1713491441226,-500.0,0.00016438,2]
[322904016,1713491441235,-500.0,0.00016438,2]
[322904017,1713491441244,-500.0,0.00016438,2]
[322904018,1713491441253,-949.62,0.00016438,2]
[322904019,1713491441262,-1484.81,0.00016438,2]
[322904020,1713491441271,-2515.96,0.00016438,2]
[322904021,1713491441280,-707.92,0.00016438,2]
[322904022,1713491441291,-2430.43,0.00016438,2]
[322904023,1713491441300,-2951.18,0.00016438,2]
[322904024,1713491441313,-500.0,0.00016438,2]
[322904025,1713491441323,-2935.73,0.00016438,2]
[322904026,1713491441333,-1108.54,0.00016438,2]
[322904027,1713491441343,-708.54,0.00016438,2]
[322904029,1713491441353,-500.0,0.00016438,2]
[322904030,1713491441362,-500.0,0.00016438,2]
[322904032,1713491441372,-500.0,0.00016438,2]
[322904034,1713491441381,-500.0,0.00016438,2]
[322904036,1713491441390,-500.0,0.00016438,2]
[322904038,1713491441400,-500.0,0.00016438,2]
[322904040,1713491441409,-500.0,0.00016438,2]
[322904042,1713491441418,-1673.67,0.00016438,2]
[322904044,1713491441429,-642.2,0.00016438,2]
[322904046,1713491441439,-500.0,0.00016438,2]
[322904048,1713491441448,-500.0,0.00016438,2]
[322904052,1713491441457,-500.0,0.00016438,2]
[322904055,1713491441473,-500.0,0.00016438,2]
[322904057,1713491441482,-500.0,0.00016438,2]
[322904059,1713491441492,-500.0,0.00016438,2]
[322904061,1713491441501,-2014.51,0.00016438,2]
[322904063,1713491441510,-500.0,0.00016438,2]
[322904065,1713491441520,-1501.99,0.00016438,2]
[322904067,1713491441529,-1192.5,0.00016438,2]
[322904069,1713491441538,-238.44679335,0.00016438,2]
[322904071,1713491441547,-892.63,0.00016438,2]
[322904073,1713491441556,-1398.38,0.00016438,2]
[322904075,1713491441565,-500.0,0.00016438,2]
[322904077,1713491441574,-500.0,0.00016438,2]
[322904079,1713491441584,-3075.01,0.00016438,2]
[322904081,1713491441593,-322.30684878,0.00016438,2]
[322904084,1713491441603,-500.0,0.00016438,2]
[322904085,1713491441612,-500.0,0.00016438,2]
[322904088,1713491441621,-500.8069647,0.00016438,2]
[322904089,1713491441631,-1273.98,0.00016438,2]
[322904091,1713491441640,-993.23,0.00016438,2]
[322904092,1713491441649,-500.0,0.00016438,2]
[322904093,1713491441658,-1717.81,0.00016438,2]
[322904094,1713491441667,-500.0,0.00016438,2]
[322904095,1713491441676,-500.0,0.00016438,2]
[322904096,1713491441685,-1590.65,0.00016438,2]
[322904097,1713491441694,-1055.86,0.00016438,2]
[322904098,1713491441703,-2711.01,0.00016438,2]
[322904099,1713491441719,-712.08,0.00016438,2]
[322904100,1713491441728,-647.85726329,0.00016438,2]
[322904101,1713491441738,-500.0,0.00016438,2]
[322904102,1713491441747,-500.0,0.00016438,2]
[322904103,1713491441756,-1244.78,0.00016438,2]
[322904104,1713491441766,-500.0,0.00016438,2]
[322904105,1713491441775,-500.0,0.00016438,2]
[322904106,1713491441784,-500.0,0.00016438,2]
[322904107,1713491441793,-500.0,0.00016438,2]
[322904108,1713491441803,-500.0,0.00016438,2]
[322904109,1713491441813,-500.0,0.00016438,2]
[322904110,1713491441822,-890.78,0.00016438,2]
[322904111,1713491441831,-500.0,0.00016438,2]
[322904112,1713491441840,-500.0,0.00016438,2]
[322904113,1713491441850,-1057.68,0.00016438,2]
[322904114,1713491441859,-500.0,0.00016438,2]
[322904115,1713491441869,-1088.94,0.00016438,2]
[322904116,1713491441881,-500.0,0.00016438,2]
[322904117,1713491441891,-500.0,0.00016438,2]
[322904118,1713491441900,-500.0,0.00016438,2]
[322904119,1713491441911,-500.0,0.00016438,2]
[322904120,1713491441920,-1087.8,0.00016438,2]
[322904121,1713491441930,-500.0,0.00016438,2]
[322904122,1713491441939,-516.9468287,0.00016438,2]
[322904123,1713491441949,-500.0,0.00016438,2]
[322904124,1713491441959,-500.0,0.00016438,2]
[322904125,1713491441974,-500.0,0.00016438,2]
[322904126,1713491441984,-647.91,0.00016438,2]
[322904127,1713491441993,-836.23,0.00016438,2]
[322904128,1713491442002,-581.7,0.00016438,2]
[322904129,1713491442011,-500.0,0.00016438,2]
[322904130,1713491442021,-500.0,0.00016438,2]
[322904131,1713491442030,-500.0,0.00016438,2]
[322904133,1713491442039,-1353.74,0.00016438,2]
[322904134,1713491442048,-1227.1,0.00016438,2]
[322904135,1713491442058,-503.10028133,0.00016438,2]
[322904136,1713491442067,-1074.14,0.00016438,2]
[322904137,1713491442076,-500.0,0.00016438,2]
[322904138,1713491442087,-1076.77,0.00016438,2]
[322904139,1713491442096,-916.2,0.00016438,2]
[322904140,1713491442106,-500.0,0.00016438,2]
[322904141,1713491442115,-500.0,0.00016438,2]
[322904142,1713491442125,-500.0,0.00016438,2]
[322904143,1713491442134,-500.0,0.00016438,2]
[322904144,1713491442144,-500.0,0.00016438,2]
[322904145,1713491442154,-500.0,0.00016438,2]
[322904146,1713491442163,-1384.98,0.00016438,2]
[322904147,1713491442172,-500.0,0.00016438,2]
[322904148,1713491442182,-500.0,0.00016438,2]
[322904149,1713491442191,-998.45,0.00016438,2]
[322904150,1713491442200,-957.11,0.00016438,2]
[322904151,1713491442209,-2440.28,0.00016438,2]
[322904152,1713491442224,-500.0,0.00016438,2]
[322904153,1713491442233,-1245.88,0.00016438,2]
[322904154,1713491442242,-500.0,0.00016438,2]
[322904155,1713491442250,-500.0,0.00016438,2]
[322904156,1713491442260,-988.1,0.00016438,2]
[322904157,1713491442268,-500.0,0.00016438,2]
[322904158,1713491442277,-1464.62,0.00016438,2]
[322904159,1713491442286,-2068.51,0.00016438,2]
[322904160,1713491442295,-519.43709655,0.00016438,2]
[322904161,1713491442304,-500.0,0.00016438,2]
[322904162,1713491442313,-215.04321979,0.00016438,2]
[322904163,1713491442322,-1108.78,0.00016438,2]
[322904164,1713491442331,-500.0,0.00016438,2]
[322904165,1713491442340,-500.0,0.00016438,2]
[322904166,1713491442350,-500.0,0.00016438,2]
[322904167,1713491442359,-500.0,0.00016438,2]
[322904168,1713491442368,-1173.09,0.00016438,2]
[322904169,1713491442377,-500.0,0.00016438,2]
[322904170,1713491442388,-595.97,0.00016438,2]
[322904171,1713491442397,-500.0,0.00016438,2]
[322904172,1713491442407,-568.97,0.00016438,2]
[322904173,1713491442417,-500.0,0.00016438,2]
[322904174,1713491442429,-547.0299458,0.00016438,2]
[322904175,1713491442438,-504.43498473,0.00016438,2]
[322904176,1713491442447,-1132.43,0.00016438,2]
[322904177,1713491442456,-2064.15,0.00016438,2]
[322904178,1713491442469,-1114.65,0.00016438,2]
[322904179,1713491442477,-500.0,0.00016438,2]
[322904180,1713491442486,-500.0,0.00016438,2]
[322904181,1713491442495,-578.12,0.00016438,2]
[322904182,1713491442505,-1139.11,0.00016438,2]
[322904183,1713491442514,-1701.73,0.00016438,2]
[322904184,1713491442523,-503.59856104,0.00016438,2]
[322904185,1713491442532,-1958.81,0.00016438,2]
[322904186,1713491442541,-500.0,0.00016438,2]
[322904187,1713491442550,-500.0,0.00016438,2]
[322904188,1713491442559,-502.41115474,0.00016438,2]
[322904189,1713491442568,-503.35849675,0.00016438,2]
[322904190,1713491442578,-1133.86,0.00016438,2]
[322904191,1713491442590,-500.0,0.00016438,2]
[322904192,1713491442599,-710.13,0.00016438,2]
[322904193,1713491442608,-1322.17,0.00016438,2]
[322904194,1713491442617,-1578.58,0.00016438,2]
[322904195,1713491442626,-970.31,0.00016438,2]
[322904196,1713491442635,-762.6,0.00016438,2]